bitfinex/quotes_ETHUSD_20220226
["timestamp","ask_amount","ask_price","bid_price","bid_amount"]
[1645835846317,5.0,2797.0,2795.5,0.89454]
[1645835846521,0.00419702,2796.0,2795.5,0.89454]
[1645835847328,0.5,2797.4,2795.5,1.19454]
[1645835847520,9.95,2798.0,2795.5,3.1261911]
[1645835847521,0.00419702,2795.9,2795.5,3.1261911]
[1645835847723,0.00419702,2795.9,2795.7,1.78858]
[1645835847921,0.00419702,2795.9,2795.7,2.23148]
[1645835848190,0.00292724,2797.7,2796.2,0.89435]
[1645835848395,0.00292724,2797.9,2796.6,0.89409]
[1645835848594,0.00292724,2797.9,2796.0,0.1429]
[1645835848595,5.0,2797.4,2796.0,0.1429]
[1645835848897,5.0,2797.2,2795.5,0.1429]
[1645835849096,3.5,2797.1,2795.4,1.4684]
[1645835849294,0.00292724,2797.1,2795.7,0.89453]
[1645835849495,0.00292724,2797.2,2795.7,0.89453]
[1645835849902,0.00292724,2797.2,2795.5,1.789]
[1645835849903,0.18511481,2797.2,2795.5,1.789]
[1645835850098,0.00126134,2796.4,2795.5,1.789]
[1645835850301,0.00126134,2796.4,2795.5,2.089]
[1645835850503,0.00126134,2796.4,2795.7,0.89441]
[1645835850703,0.00126134,2796.4,2795.8,0.1429]
[1645835850903,0.00292724,2797.4,2795.8,0.1429]
[1645835851106,0.00292724,2797.6,2795.8,0.1429]
[1645835851300,10.378,2798.0,2795.6,5.99405665]
[1645835851301,0.00292724,2797.8,2795.6,5.99405665]
[1645835851502,1.25763745,2797.6,2795.9,0.89427]
[1645835851702,0.00292724,2797.5,2796.2,1.7881]
[1645835851908,4.95,2798.0,2796.2,1.7881]
[1645835851909,0.00292724,2797.9,2796.3,0.1429]
[1645835852311,0.00292724,2797.9,2796.2,1.7881]
[1645835852524,0.00292724,2797.9,2796.8,0.89406]
[1645835852719,0.00292724,2797.9,2796.5,0.17499888]
[1645835852920,1.42615253,2797.5,2796.5,0.17499888]
[1645835853118,0.00292724,2797.4,2796.5,0.17499888]
[1645835853326,0.00292724,2797.4,2796.8,0.18089424]
[1645835853520,4.95,2798.0,2796.8,0.18089424]
[1645835853521,4.95,2798.0,2797.1,0.8937521]
[1645835854034,0.428,2799.5,2797.1,0.8937521]
[1645835854035,7.45,2799.8,2797.6,0.01292505]
[1645835854222,0.2,2799.9,2798.0,1.78687]
[1645835854425,7.45,2800.4,2798.3,2.69176722]
[1645835854620,7.45,2800.4,2798.6,11.03]
[1645835854821,0.01663558,2799.3,2798.9,1.0]
[1645835855227,7.45,2800.4,2798.9,1.3]
[1645835855425,7.4287668,2800.0,2799.1,1.7863]
[1645835855678,1.30876677,2799.9,2799.2,0.5708]
[1645835855877,0.6831868,2800.0,2799.3,1.0]
[1645835856276,0.6831868,2800.0,2799.2,1.11451736]
[1645835856277,0.6831868,2800.0,2799.2,0.89315]
[1645835856875,0.6831868,2800.0,2799.1,1.7863]
[1645835858178,0.6831868,2800.0,2798.4,1.0]
[1645835858179,0.9831868,2800.0,2798.4,1.0]
[1645835858377,1.19082943,2798.9,2798.1,12.6439161]
[1645835858579,0.6831868,2800.0,2798.5,1.78696]
[1645835859278,0.6840421,2800.0,2798.5,1.78696]
[1645835859534,0.6840421,2800.0,2798.0,3.57303]
[1645835859535,1.30186917,2798.6,2798.0,3.57303]
[1645835859730,1.30272447,2798.6,2798.2,0.8937]
[1645835859933,0.0008553,2798.6,2798.3,1.504]
[1645835860131,0.0008553,2798.6,2798.2,1.3217]
[1645835860535,0.00411786,2799.4,2798.2,1.3217]
[1645835860732,0.00823454,2799.4,2798.3,0.00487137]
[1645835860933,0.00411668,2799.4,2798.5,0.89348]
[1645835861643,3.50291573,2799.9,2797.6,1.7872847]
[1645835861832,5.0,2799.3,2797.8,1.7874]
[1645835862033,0.00291573,2799.2,2798.6,0.00487117]
[1645835862234,1.0,2799.3,2798.6,0.00487117]
[1645835862432,0.00703315,2799.4,2798.6,0.00487117]
[1645835862433,1.41854456,2799.2,2798.6,0.00487117]
[1645835862841,1.41854456,2799.2,2797.8,1.7874]
[1645835863033,0.00291573,2799.1,2797.8,1.7874]
[1645835863263,0.00291573,2799.1,2798.6,0.00487115]
[1645835863468,1.41854456,2799.2,2798.6,0.00487115]
[1645835863864,0.00411734,2799.4,2798.6,0.00487115]
[1645835863865,1.40275534,2798.7,2798.6,0.00487115]
[1645835864097,0.36511573,2799.8,2798.4,1.78706]
[1645835864469,0.36511573,2799.8,2798.6,0.00487115]
[1645835864470,0.00411734,2799.4,2798.6,0.00487115]
[1645835865070,1.40762898,2799.1,2798.6,0.00487115]
[1645835865269,1.40762898,2799.1,2798.4,2.980522]
[1645835865669,1.40762898,2799.1,2798.6,0.00487119]
[1645835866173,6.40762898,2799.1,2798.6,0.00487119]
[1645835866374,5.0,2799.0,2798.6,0.00487119]
[1645835866574,3.8622,2798.9,2797.2,0.13819997]
[1645835866773,4.86511573,2798.9,2797.2,0.13819997]
[1645835867017,4.45291573,2798.9,2798.6,0.00487113]
[1645835867217,0.8,2798.9,2798.6,0.00487113]
[1645835867717,1.2813621,2798.2,2797.6,1.78749]
[1645835868021,0.00291573,2798.8,2798.6,0.00486924]
[1645835868217,0.3622,2799.1,2798.6,0.00486924]
[1645835868218,0.00291573,2799.1,2798.6,0.00486924]
[1645835868418,7.7638,2799.2,2798.6,0.00486924]
[1645835868618,0.00010425,2798.5,2797.6,1.78749]
[1645835868822,0.00411712,2799.4,2797.3,12.5]
[1645835868823,10.51601712,2799.4,2797.3,12.5]
[1645835869030,0.52769986,2800.3,2797.3,12.5]
[1645835869031,3.79174595,2803.7,2800.2,29.96116506]
[1645835869230,1.15735432,2803.7,2802.7,0.29989575]
[1645835869426,18.88768795,2805.6,2802.7,0.29989575]
[1645835869427,3.7011972,2806.8,2804.2,3.51007924]
[1645835869634,0.05553772,2808.1,2804.2,3.51007924]
[1645835869635,1.91392435,2806.7,2805.5,15.43188607]
[1645835869834,0.05553772,2808.1,2805.5,15.43188607]
[1645835869835,0.05553772,2808.1,2807.6,3.5167378]
[1645835870036,7.68514372,2810.0,2807.9,21.33289575]
[1645835870226,2.15672581,2811.0,2809.9,16.033]
[1645835870227,1.09875224,2810.5,2809.9,16.033]
[1645835870424,2.15672581,2811.0,2809.9,16.033]
[1645835870425,0.40821715,2811.0,2810.4,16.033]
[1645835870705,3.59454302,2815.3,2810.4,16.033]
[1645835870706,0.63371695,2815.1,2810.9,22.04566069]
[1645835870887,1.45594106,2815.8,2814.9,5.344]
[1645835871107,2.122372,2816.7,2815.0,73.22409882]
[1645835871285,3.59454302,2822.5,2817.9,0.02841464]
[1645835871501,3.59454302,2822.5,2815.7,0.2553026]
[1645835871502,5.0,2822.1,2818.0,108.94110754]
[1645835871695,5.0,2822.1,2820.1,5.344]
[1645835871902,6.63922895,2822.8,2818.1,144.58904327]
[1645835871903,0.13819997,2821.7,2820.2,37.20995238]
[1645835872114,0.13819997,2821.7,2820.5,11.28]
[1645835872115,0.14722168,2821.7,2820.5,11.28]
[1645835872285,1.03367057,2826.7,2821.7,1.0]
[1645835872594,1.14478,2826.6,2822.8,1.76946]
[1645835872785,0.02691,2826.5,2825.6,0.012]
[1645835872987,3.72548616,2826.9,2826.5,1.0]
[1645835872988,1.13008143,2826.7,2826.5,1.0]
[1645835873194,3.72548616,2826.9,2825.8,0.71686025]
[1645835873486,10.8,2826.6,2826.4,1.0]
[1645835873788,0.35939122,2827.7,2825.6,0.01014102]
[1645835873789,1.32459333,2828.2,2826.5,37.27079598]
[1645835873989,10.0,2831.1,2826.5,37.27079598]
[1645835873990,1.0,2828.5,2827.9,0.01259621]
[1645835874189,10.0,2832.1,2828.1,12.06]
[1645835874190,0.04661072,2829.9,2828.1,12.06]
[1645835874433,2.11910888,2833.5,2828.4,1.0]
[1645835874434,2.98350306,2833.4,2828.4,1.0]
[1645835874635,1.03414273,2832.0,2829.8,10.5]
[1645835874828,2.11910888,2833.5,2829.9,62.71723171]
[1645835875027,2.11910888,2833.5,2831.9,1.0]
[1645835875248,2.11910888,2833.5,2830.5,0.01249608]
[1645835875249,5.0,2832.7,2830.5,0.01249608]
[1645835875425,5.0,2832.7,2829.3,0.1985537]
[1645835875426,0.3777,2833.2,2830.4,0.01223092]
[1645835875637,5.59242384,2833.5,2831.1,0.01208799]
[1645835875638,0.00278146,2832.6,2831.1,0.01208799]
[1645835875840,5.59242384,2833.5,2829.2,1.52180504]
[1645835875841,0.00278146,2833.1,2830.5,0.04717915]
[1645835876035,0.00278146,2833.1,2830.3,0.25]
[1645835876036,0.00278146,2833.4,2831.2,0.04320018]
[1645835876231,5.344,2832.9,2832.4,0.012]
[1645835876431,12.5,2833.0,2830.1,6.42296953]
[1645835876633,12.5,2833.0,2828.9,0.25]
[1645835876634,0.00109341,2831.9,2828.4,0.24247329]
[1645835876833,1.38538269,2828.5,2828.3,0.25]
[1645835877039,5.344,2831.0,2827.5,0.34960002]
[1645835877233,0.00278146,2829.1,2828.1,5.0]
[1645835877536,1.0,2831.8,2828.4,0.23200476]
[1645835877537,0.00278146,2830.4,2828.4,0.23200476]
[1645835877732,0.2495,2830.4,2827.8,0.25]
[1645835877935,0.00109341,2829.4,2827.2,0.01230446]
[1645835878177,0.428,2829.3,2827.2,0.01230446]
[1645835878479,5.344,2830.0,2827.2,0.01230446]
[1645835878480,5.344,2831.6,2829.3,1.0]
[1645835878681,5.344,2832.6,2830.4,8.216e-05]
[1645835878881,5.344,2832.6,2828.5,0.58421]
[1645835878882,0.023248,2830.3,2828.5,0.58421]
[1645835879078,0.023248,2830.3,2827.7,0.4728]
[1645835879079,0.001169,2828.4,2827.7,0.4728]
[1645835879277,0.001169,2828.4,2827.0,3.9613]
[1645835879278,1.26566623,2828.3,2827.0,3.9613]
[1645835879476,0.001169,2828.4,2827.1,3.63637]
[1645835879680,0.001169,2828.4,2828.2,1.0]
[1645835880082,0.001169,2828.4,2828.1,0.87024]
[1645835880083,6.9e-05,2828.4,2828.3,1.0]
[1645835880287,0.02922356,2828.5,2828.3,1.0]
[1645835880288,0.02922356,2828.5,2828.3,4.74047]
[1645835880481,0.2495,2830.5,2828.5,1.09528]
[1645835880482,1.0,2830.1,2828.5,1.09528]
[1645835880682,1.0,2830.1,2828.5,1.96539]
[1645835880880,0.328855,2830.0,2828.4,0.1056]
[1645835881091,0.023248,2830.3,2828.4,0.1056]
[1645835881283,0.5776,2829.6,2829.2,0.01241934]
[1645835881481,9.099,2832.4,2828.6,0.4728]
[1645835881482,0.00274371,2831.7,2828.7,0.20644251]
[1645835881679,0.00326969,2829.9,2829.5,1.0]
[1645835881925,0.00273226,2832.0,2831.6,1.0]
[1645835882138,3.40382165,2833.2,2831.6,1.0]
[1645835882139,0.24345,2832.2,2831.6,1.0]
[1645835882345,0.24345,2832.2,2829.8,1.0]
[1645835882346,0.10864,2831.7,2829.8,1.0]
[1645835882527,0.00273226,2832.1,2829.8,0.21758956]
[1645835882732,0.00273226,2831.6,2829.6,0.15045242]
[1645835882929,0.24345,2832.2,2831.6,1.0]
[1645835882930,0.35311,2831.9,2831.6,1.0]
[1645835883129,0.5776,2832.8,2831.6,0.22044005]
[1645835883327,0.5776,2832.8,2831.5,1.0]
[1645835883328,0.23073,2832.1,2831.8,1.01231289]
[1645835883529,3.7511972,2833.6,2832.0,0.01281987]
[1645835883734,3.7511972,2833.6,2832.1,29.21815342]
[1645835883936,0.23059,2832.9,2832.1,29.21815342]
[1645835884128,3.7511972,2833.6,2831.8,0.01207209]
[1645835884327,3.9316772,2833.6,2833.5,1.0]
[1645835884533,0.01299232,2833.9,2831.7,12.5]
[1645835884829,0.5776,2834.3,2833.5,0.82433562]
[1645835885028,1.17606116,2834.2,2833.4,0.09922275]
[1645835885226,0.5776,2834.3,2831.7,0.01274782]
[1645835885227,1.08771365,2833.0,2831.7,0.01274782]
[1645835885727,0.00104528,2833.7,2832.9,1.0]
[1645835885916,0.00104528,2833.7,2829.9,0.25]
[1645835885917,0.00104528,2833.7,2831.5,0.01296949]
[1645835886116,0.00104528,2833.7,2829.9,8.5]
[1645835886117,0.5776,2833.9,2832.9,0.675]
[1645835886320,0.5776,2833.9,2831.1,0.01230855]
[1645835886321,5.0,2833.0,2831.1,0.01230855]
[1645835886518,0.00315773,2832.5,2831.1,0.01201305]
[1645835886818,0.00315773,2832.5,2830.4,0.47882181]
[1645835886819,5.0,2832.2,2830.4,0.47882181]
[1645835887017,5.0,2831.9,2830.4,0.47882181]
[1645835887216,0.00315773,2832.5,2830.4,0.47882181]
[1645835887418,0.5776,2832.4,2832.1,1.0]
[1645835887617,0.5776,2832.4,2830.5,0.49463]
[1645835887618,0.5776,2832.4,2830.5,0.58323556]
[1645835887820,0.00315773,2831.4,2830.6,0.35353]
[1645835888018,0.00315773,2831.4,2830.4,0.00489145]
[1645835888419,5.773e-05,2831.4,2831.3,2.0]
[1645835888621,0.5776,2833.5,2831.4,0.25825411]
[1645835888826,0.5776,2833.5,2831.5,0.0008]
[1645835889018,5.0,2834.6,2833.4,1.0]
[1645835889019,5.01216407,2834.6,2833.4,1.0]
[1645835889220,6.12446407,2834.6,2833.4,1.0]
[1645835889423,5.0,2834.3,2833.5,1.0]
[1645835889631,5.0,2834.3,2833.1,1.0]
[1645835889632,1.1123,2834.3,2833.2,0.18189113]
[1645835889828,1.1123,2834.3,2831.5,0.0008]
[1645835889829,1.20996879,2831.7,2831.5,0.19312799]
[1645835890031,1.31151522,2834.2,2831.5,0.19312799]
[1645835890032,5.0,2833.4,2832.2,0.01207374]
[1645835890230,0.00587885,2834.1,2832.3,0.01207387]
[1645835890434,0.00587885,2834.1,2831.7,0.35353]
[1645835890435,0.00315644,2834.1,2831.7,0.35353]
[1645835890632,0.00315644,2834.1,2832.1,0.01216357]
[1645835890633,0.1411,2834.0,2832.1,0.01216357]
[1645835890840,0.1411,2834.0,2831.6,0.01223726]
[1645835891029,0.00271022,2833.9,2831.7,0.01208686]
[1645835891335,0.1411,2833.8,2832.3,0.01273543]
[1645835891544,5.0,2833.4,2831.6,0.0123325]
[1645835891730,10.0,2834.5,2831.6,0.0123325]
[1645835891731,0.1411,2833.3,2831.6,0.0123325]
[1645835891930,0.14381022,2833.3,2831.6,0.0123325]
[1645835892330,0.00271022,2833.3,2833.0,1.0]
[1645835892531,0.00094693,2832.6,2831.5,0.0008]
[1645835892931,5.0,2832.3,2831.5,0.0008]
[1645835893177,1.0385693,2832.5,2831.5,0.0008]
[1645835893582,0.01522198,2833.2,2829.9,0.0124785]
[1645835893583,2.232e-05,2830.7,2829.9,0.0124785]
[1645835893783,0.00094693,2832.0,2831.0,3.13406456]
[1645835893987,0.00094693,2832.0,2830.6,1.0]
[1645835894182,0.00094693,2832.0,2831.9,1.0]
[1645835894387,0.00094693,2832.0,2829.4,2.50549998]
[1645835894388,5.00094693,2832.0,2829.8,0.01252267]
[1645835894584,5.0,2831.1,2829.4,2.50549998]
[1645835894788,10.01210305,2831.7,2829.4,2.3673]
[1645835894986,10.01210305,2831.7,2828.7,2.4008]
[1645835894987,0.00271022,2831.0,2828.7,2.42096941]
[1645835895188,5.0,2830.5,2828.7,2.42096941]
[1645835895386,0.23833408,2830.5,2828.0,0.01275307]
[1645835895587,0.00271022,2830.4,2828.1,0.1413]
[1645835895787,0.00271022,2830.9,2830.4,1.0]
[1645835895986,0.00271022,2830.9,2828.0,0.1413]
[1645835895987,0.00271022,2830.5,2828.0,0.1413]
[1645835896188,0.3,2830.8,2827.2,0.35353]
[1645835896391,0.3,2830.8,2827.9,0.85864157]
[1645835896392,0.01284243,2830.2,2827.9,0.85864157]
[1645835896598,5.0,2832.2,2830.1,0.85864157]
[1645835896953,4.0,2833.2,2830.1,0.85864157]
[1645835896954,7.75632622,2833.1,2832.1,1.0]
[1645835897143,4.90448841,2833.2,2832.1,0.9]
[1645835897144,0.01248295,2832.6,2832.1,0.9]
[1645835897340,0.01248295,2832.6,2830.7,0.85864157]
[1645835897538,4.0,2833.2,2830.7,0.85864157]
[1645835897539,0.00268455,2833.1,2832.7,0.03744884]
[1645835897740,0.32428029,2834.8,2832.7,0.03744884]
[1645835897741,0.1412,2834.8,2832.9,0.85864157]
[1645835897938,0.1412,2834.8,2832.7,0.03744884]
[1645835897939,0.00268455,2834.7,2833.0,1.0]
[1645835898140,0.1411,2834.6,2832.7,0.03744884]
[1645835898647,0.1411,2834.6,2831.8,0.85864157]
[1645835898648,0.0009649,2834.0,2833.6,0.85864157]
[1645835898841,0.5,2833.7,2832.4,0.85864157]
[1645835899045,0.00268455,2833.6,2831.6,0.01283586]
[1645835899247,0.00268455,2833.6,2831.0,0.01257841]
[1645835899248,0.90448841,2833.0,2831.0,0.01257841]
[1645835899444,0.90448841,2833.0,2830.6,0.43819998]
[1645835899445,0.00268455,2832.9,2831.8,0.85864157]
[1645835899744,0.00268455,2832.9,2829.9,0.01222903]
[1645835899745,0.90448841,2832.1,2830.7,1.0192]
[1645835900051,1.29428257,2831.2,2830.4,0.85864157]
[1645835900244,0.90448841,2831.0,2830.8,0.9584]
[1645835900443,0.90448841,2830.9,2828.8,1.2073]
[1645835900686,0.01227498,2830.9,2829.4,0.85864157]
[1645835900885,0.00268455,2830.8,2829.8,0.85864157]
[1645835901094,0.0009649,2831.0,2830.8,1.0]
[1645835901285,6.49e-05,2831.0,2830.7,1.0]
[1645835901686,6.49e-05,2831.0,2830.9,1.0]
[1645835901893,0.00268455,2832.5,2831.0,12.5]
[1645835902091,0.01235111,2834.1,2832.4,4.95415316]
[1645835902286,0.90448841,2834.7,2833.0,4.95415316]
[1645835902489,0.00267476,2834.6,2834.0,1.0]
[1645835902690,0.01779096,2835.5,2834.0,1.0]
[1645835902890,0.01779096,2835.5,2835.0,4.1085015]
[1645835903090,9.096e-05,2835.5,2835.0,0.18739282]
[1645835903293,9.096e-05,2835.5,2834.9,0.24474907]
[1645835903491,9.096e-05,2835.5,2834.8,1.0]
[1645835903492,9.096e-05,2835.5,2835.4,1.0]
[1645835903692,1.00009096,2835.5,2835.4,5.10837912]
[1645835903890,1.00009096,2835.5,2835.4,2.0]
[1645835903891,9.096e-05,2835.5,2835.4,2.0]
[1645835904531,9.096e-05,2835.5,2835.4,1.0]
[1645835904730,9.096e-05,2835.5,2835.4,0.9]
[1645835904932,9.096e-05,2835.5,2834.8,1.0]
[1645835905333,9.096e-05,2835.5,2835.4,1.0]
[1645835905747,9.096e-05,2835.5,2832.0,0.35278]
[1645835905748,0.91686264,2835.5,2834.5,1.0]
[1645835905937,1.19792394,2832.6,2832.0,5.15940228]
[1645835906136,0.01292888,2833.5,2831.0,0.1056]
[1645835906336,0.01227774,2832.8,2831.0,0.1056]
[1645835906532,0.01235728,2833.2,2832.5,1.0]
[1645835906733,1.16439677,2834.3,2831.1,4.09551159]
[1645835906933,1.16439677,2834.3,2833.1,1.0]
[1645835906934,0.90448841,2834.3,2833.1,1.0]
[1645835907138,0.00093078,2832.0,2831.0,0.96424157]
[1645835907334,0.00093078,2832.0,2831.3,0.3]
[1645835907535,3.078e-05,2832.0,2831.9,4.09551159]
[1645835907736,6.824e-05,2832.2,2832.1,0.00076922]
[1645835907938,0.2323908,2835.3,2832.1,0.00076922]
[1645835907939,3.18644521,2835.7,2832.2,12.5]
[1645835908210,3.18644521,2835.7,2833.3,0.26386622]
[1645835908211,0.1411,2835.6,2833.3,0.26386622]
[1645835908399,0.90448841,2837.1,2835.6,0.93729]
[1645835908596,0.01942625,2837.9,2836.1,0.85864157]
[1645835908799,0.01942625,2837.9,2836.3,0.80864157]
[1645835908800,0.00265474,2837.0,2836.3,0.80864157]
[1645835908998,0.01653882,2838.8,2836.9,4.91714847]
[1645835908999,0.90448841,2838.7,2836.9,4.91714847]
[1645835909196,0.07914357,2838.9,2837.0,3.5]
[1645835909402,3.319e-05,2838.6,2838.4,0.80864157]
[1645835909598,0.04263176,2838.7,2838.6,0.95]
[1645835909807,0.012247,2840.0,2838.7,0.0426]
[1645835909808,24.24700324,2839.5,2838.7,0.0426]
[1645835909997,24.24700324,2839.5,2838.4,0.2569127]
[1645835909998,0.90448841,2839.1,2838.4,0.2569127]
[1645835910200,0.90448841,2839.1,2837.2,0.01239381]
[1645835910201,0.90448841,2839.0,2838.6,1.0]
[1645835910401,0.90448841,2839.0,2836.4,0.23256189]
[1645835910402,1.12411927,2837.6,2836.4,0.23256189]
[1645835910596,0.00260038,2837.5,2835.9,0.13819998]
[1645835910796,0.00260038,2837.5,2835.1,0.47303]
[1645835910797,0.00260038,2837.5,2835.5,0.26510505]
[1645835910997,0.90448841,2837.8,2837.5,1.0]
[1645835911196,0.00260038,2837.7,2837.4,1.0]
[1645835911396,0.01212598,2837.9,2835.7,4.09551159]
[1645835911596,0.90448841,2836.6,2835.7,4.09551159]
[1645835911798,0.01212598,2837.9,2837.8,1.0]
[1645835912037,5.78097143,2840.3,2837.9,12.5]
[1645835912038,0.01249226,2839.9,2837.9,12.5]
[1645835912248,3.52226,2844.3,2841.1,3.05511183]
[1645835912447,0.00175,2846.4,2839.8,0.9]
[1645835912448,9.19135843,2842.7,2839.8,0.9]
[1645835912644,9.19135843,2842.7,2839.6,0.81039157]
[1645835912645,0.75999959,2840.7,2839.9,10.0]
[1645835912946,1.0355142,2839.8,2839.6,0.00175]
[1645835913147,1.1408,2839.7,2839.6,0.00175]
[1645835913443,1.0,2839.7,2839.6,1.00175]
[1645835913854,1.0,2839.7,2839.1,1.0]
[1645835913855,3.5,2839.6,2839.1,1.0]
[1645835914046,0.75999959,2839.2,2838.7,1.0]
[1645835914245,0.75999959,2839.2,2835.9,0.01257474]
[1645835914246,0.77285556,2838.8,2836.4,0.1424]
[1645835914447,2.8992315,2837.8,2835.7,2.1007685]
[1645835914646,2.8992315,2836.8,2835.7,2.1007685]
[1645835914844,2.8992315,2837.5,2835.9,2.1007685]
[1645835915049,0.0025911,2836.7,2836.0,3.5]
[1645835915244,0.0025911,2836.7,2835.6,0.1344]
[1645835915245,1.28537925,2837.4,2835.6,0.152]
[1645835915447,2.97416955,2840.0,2837.4,1.0]
[1645835915683,2.97416955,2840.0,2837.3,1.0]
[1645835915684,0.00086269,2838.2,2837.3,1.0]
[1645835916188,0.00086269,2838.2,2838.1,3.1007685]
[1645835916189,6.269e-05,2838.2,2838.1,3.1007685]
[1645835916584,2.63563304,2839.8,2838.1,1.0]
[1645835916785,0.0025779,2838.5,2838.1,1.0]
[1645835916985,0.0682,2839.7,2837.9,2.36436696]
[1645835916986,0.0025779,2839.7,2837.9,2.36436696]
[1645835917192,0.51201477,2841.0,2839.6,2.36436696]
[1645835917193,0.5,2841.0,2839.6,2.36436696]
[1645835917389,0.0682,2841.9,2839.7,4.5]
[1645835917597,8.80397,2845.2,2839.7,4.5]
[1645835917598,0.5,2841.5,2840.2,2.37670415]
[1645835917791,0.5,2841.5,2840.3,0.21508977]
[1645835917988,0.5,2841.5,2840.2,0.01233719]
[1645835917989,0.00255802,2841.4,2840.4,2.36436696]
[1645835918188,0.1408,2841.3,2840.7,2.36436696]
[1645835918388,0.00254751,2841.4,2841.3,1.0]
[1645835918588,0.0682,2843.0,2841.3,1.0]
[1645835918790,0.0682,2843.0,2841.5,2.36436696]
[1645835918989,0.5,2843.9,2841.5,2.36436696]
[1645835918990,0.48815072,2842.9,2841.5,2.36436696]
[1645835919188,0.48815072,2842.9,2841.4,3.5]
[1645835919456,0.48815072,2842.9,2841.9,2.36436696]
[1645835919457,0.00253703,2842.8,2841.9,2.36436696]
[1645835919641,1.22244897,2842.2,2841.3,0.01202885]
[1645835919840,0.1406,2842.1,2841.5,2.26436696]
[1645835920073,0.34745072,2842.9,2842.1,1.0]
[1645835920074,0.1407,2842.5,2842.1,1.0]
[1645835920250,1.0,2842.1,2840.4,0.19537498]
[1645835920447,0.00274901,2841.9,2839.6,0.13819998]
[1645835920642,0.00274901,2841.9,2840.2,2.26436696]
[1645835920839,4.901e-05,2841.9,2840.1,5.0]
[1645835921042,4.901e-05,2841.9,2839.6,0.3552756]
[1645835921043,4.901e-05,2841.9,2841.8,1.0]
[1645835921242,4.901e-05,2841.9,2841.8,0.9]
[1645835921442,4.901e-05,2841.9,2841.8,0.6529]
[1645835921640,4.901e-05,2841.9,2839.7,0.01247301]
[1645835921641,4.901e-05,2841.9,2839.8,0.26106491]
[1645835921840,4.901e-05,2841.9,2841.8,1.0]
[1645835922040,4.901e-05,2841.9,2840.5,2.26436696]
[1645835922240,0.0522234,2842.3,2841.9,12.5]
[1645835922241,0.041229,2842.3,2841.9,12.5]
[1645835922442,0.041229,2842.3,2842.1,2.26436696]
[1645835922443,2.34e-05,2842.3,2842.1,2.26436696]
[1645835922846,2.34e-05,2842.3,2842.2,1.19215967]
[1645835923042,2.34e-05,2842.3,2842.2,1.0]
[1645835923281,2.34e-05,2842.3,2842.2,2.24185072]
[1645835923483,0.34745072,2842.9,2842.2,2.0]
[1645835923684,5.072e-05,2842.9,2842.2,2.0]
[1645835923883,5.072e-05,2842.9,2842.8,3.26436696]
[1645835924484,0.00252672,2844.4,2842.9,0.36696935]
[1645835924690,0.45,2844.5,2844.3,2.26436696]
[1645835924891,0.14311719,2844.4,2844.3,1.0]
[1645835925184,10.2191972,2847.1,2844.3,1.0]
[1645835925185,0.4496,2845.1,2844.4,1.24125571]
[1645835925392,0.4496,2845.1,2844.7,0.01277644]
[1645835925697,0.4496,2845.1,2845.0,1.0]
[1645835925884,0.1405,2845.1,2845.0,1.0]
[1645835926083,0.1405,2845.1,2843.8,0.13819998]
[1645835926084,1.40565652,2843.9,2843.2,0.01252577]
[1645835926284,1.40565652,2843.9,2842.9,0.0008]
[1645835926494,0.00251719,2843.8,2843.0,36.1298375]
[1645835926692,0.2902,2845.5,2842.9,0.0008]
[1645835926693,0.0708,2846.1,2843.8,1.0]
[1645835926940,0.0708,2846.1,2843.9,4.9056]
[1645835927143,2.73563304,2846.9,2845.7,1.0]
[1645835927144,0.00250649,2846.2,2845.7,1.0]
[1645835927345,0.04149491,2846.0,2845.7,1.0]
[1645835927542,0.1405,2846.1,2844.6,2.26436696]
[1645835927543,2.91819637,2846.1,2844.6,2.26436696]
[1645835927744,0.00250649,2846.0,2844.6,2.26436696]
[1645835927948,0.00250649,2846.0,2844.9,2.26436696]
[1645835927949,0.1405,2845.9,2844.9,2.26436696]
[1645835928148,2.649e-05,2845.9,2844.9,0.24649383]
[1645835928349,2.649e-05,2845.9,2844.6,0.01202524]
[1645835928350,0.02385383,2847.0,2845.8,2.26436696]
[1645835928548,0.02385383,2847.0,2846.4,2.26436696]
[1645835928745,1.41542581,2847.4,2846.9,1.0]
[1645835928948,3.7011972,2847.1,2846.9,1.0]
[1645835929244,3.7011972,2847.1,2846.2,0.01205708]
[1645835929245,3.7011972,2847.1,2847.0,1.0]
[1645835929747,3.7011972,2847.1,2845.8,0.13819998]
[1645835929942,3.7011972,2847.1,2845.0,4.0]
[1645835929943,1.29906014,2847.0,2845.6,2.26436696]
[1645835930145,1.29906014,2847.0,2845.0,0.5]
[1645835930344,1.29906014,2847.0,2845.3,2.26436696]
[1645835930550,0.3,2846.8,2845.3,2.25363253]
[1645835930790,0.3,2846.8,2844.3,19.83729524]
[1645835930791,0.00245776,2846.7,2844.3,0.0129635]
[1645835931098,0.00245776,2846.9,2846.7,1.0]
[1645835931294,3.7011972,2847.1,2845.5,2.25363253]
[1645835931493,10.0,2845.0,2844.4,0.13819998]
[1645835931695,10.0,2845.0,2844.9,2.25363253]
[1645835931893,10.0,2845.0,2844.9,3.25363253]
[1645835932096,1.11144522,2845.5,2844.9,3.25363253]
[1645835932297,0.00245776,2846.9,2845.3,2.25363253]
[1645835932499,0.428,2846.8,2845.4,1.0]
[1645835932698,3.70363699,2847.1,2846.7,2.25363253]
[1645835933106,0.0139167,2846.9,2846.8,1.0]
[1645835933496,0.0139167,2846.9,2846.3,1.0]
[1645835933697,0.0139167,2846.9,2846.8,1.0]
[1645835933698,0.4419167,2846.9,2846.8,1.0]
[1645835933897,3.18828417,2846.9,2846.3,1.0]
[1645835934102,3.18828417,2846.9,2846.8,1.0]
[1645835934103,0.4419167,2846.9,2846.8,1.0]
[1645835934297,0.4419167,2846.9,2845.4,0.1405]
[1645835934298,0.428,2846.9,2845.4,0.1405]
[1645835934540,1.0,2846.1,2845.4,0.1405]
[1645835934941,1.0,2846.1,2846.0,1.0]
[1645835935146,1.428,2846.1,2846.0,1.0]
[1645835935546,1.428,2846.1,2846.0,0.95]
[1645835935752,1.428,2846.1,2845.5,2.25363253]
[1645835935953,3.7011972,2847.1,2846.1,1.428]
[1645835936148,3.7011972,2847.1,2847.0,2.25363253]